{"text_format":"1","workbook":"xlsx","n_sheets":2,"sheets":["Mapa","Buscador"],"not_rendered":{"charts":0,"images":2,"macros":1,"external_links":0,"defined_names":4,"comments":0,"pivot_tables":0},"unopened":[],"bounds":{"document_bytes":16777216,"sheet_cells":100000,"rows_first":2000,"rows_last":500,"rows_between":2000,"halvings":0,"cell_chars":16384,"cell_head_chars":4096},"cells_cut":0,"cells_raw":0,"read":"whole","date_system":"1900"}

{"sheet":"Mapa","index":0,"n_rows":1,"n_cols":2,"rows_kept":1,"cut":false,"hidden":false,"merged":[]}
[null,""]

{"sheet":"Buscador","index":1,"n_rows":244,"n_cols":11,"rows_kept":244,"cut":false,"hidden":false,"merged":[]}
["Países",null,"Países buscados",null,"Países no repetidos",null,"Países ordenados",null,"Países listados",null,""]
["Afganistán",null,{"$f":"IF(IFERROR(VLOOKUP(miDesplegable&\"*\",$A2:$A$244,1,FALSE),\"\")=\"\",\"\",IFERROR(VLOOKUP(miDesplegable&\"*\",$A2:$A$244,1,FALSE),\"\"))","v":"Afganistán"},null,{"$f":"IFERROR(INDEX(TablaPaísesBuscados[],MATCH(ROW(TablaPaísesBuscados[])+1-ROW(INDEX(TablaPaísesBuscados[],1)),COUNTIF(TablaPaísesBuscados[],\"<=\"&INDEX(IFERROR(TablaPaísesBuscados[]&\"\",0),ROW(TablaPaísesBuscados[])+1-ROW(INDEX(TablaPaísesBuscados[],1)))),0)),\"\")","v":"Afganistán"},null,{"$f":"IFERROR(INDEX($E$2:$E$244,SMALL(IF(IFERROR($E$2:$E$244&\"\",\"\")=\"\",\"\",MATCH(ROW($E$2:$E$244),ROW($E$2:$E$244),0)),ROW($E$2:$E$244)+1-ROW(INDEX($E$2:$E$244,1))))&\"\",\"\")","v":"Afganistán"},null,{"$f":"INDEX(Buscador!$G$2:$G$244,1):INDEX(Buscador!$G$2:$G$244,MAX(1,COUNTIF(Buscador!$G$2:$G$244,\"?*\")))","v":"Afganistán"},null,"Buscador de países"]
["Albania",null,{"$f":"IF(IFERROR(VLOOKUP(miDesplegable&\"*\",$A3:$A$244,1,FALSE),\"\")=\"\",\"\",IFERROR(VLOOKUP(miDesplegable&\"*\",$A3:$A$244,1,FALSE),\"\"))","v":"Albania"},null,"Albania",null,"Albania",null,"Albania",null,""]
["Alemania",null,{"$f":"IF(IFERROR(VLOOKUP(miDesplegable&\"*\",$A4:$A$244,1,FALSE),\"\")=\"\",\"\",IFERROR(VLOOKUP(miDesplegable&\"*\",$A4:$A$244,1,FALSE),\"\"))","v":"Alemania"},null,"Alemania",null,"Alemania",null,"Alemania"]
["Andorra",null,{"$f":"IF(IFERROR(VLOOKUP(miDesplegable&\"*\",$A5:$A$244,1,FALSE),\"\")=\"\",\"\",IFERROR(VLOOKUP(miDesplegable&\"*\",$A5:$A$244,1,FALSE),\"\"))","v":"Andorra"},null,"Andorra",null,"Andorra",null,"Andorra"]
["Angola",null,{"$f":"IF(IFERROR(VLOOKUP(miDesplegable&\"*\",$A6:$A$244,1,FALSE),\"\")=\"\",\"\",IFERROR(VLOOKUP(miDesplegable&\"*\",$A6:$A$244,1,FALSE),\"\"))","v":"Angola"},null,"Angola",null,"Angola",null,"Angola"]
["Anguila",null,{"$f":"IF(IFERROR(VLOOKUP(miDesplegable&\"*\",$A7:$A$244,1,FALSE),\"\")=\"\",\"\",IFERROR(VLOOKUP(miDesplegable&\"*\",$A7:$A$244,1,FALSE),\"\"))","v":"Anguila"},null,"Anguila",null,"Anguila",null,"Anguila","Blog:","#ExcelPedroWave"]
["Antigua y Barbuda",null,{"$f":"IF(IFERROR(VLOOKUP(miDesplegable&\"*\",$A8:$A$244,1,FALSE),\"\")=\"\",\"\",IFERROR(VLOOKUP(miDesplegable&\"*\",$A8:$A$244,1,FALSE),\"\"))","v":"Antigua y Barbuda"},null,"Antigua y Barbuda",null,"Antigua y Barbuda",null,"Antigua y Barbuda","YouTube:","Excel Pedro Wave"]
["Arabia Saudita",null,{"$f":"IF(IFERROR(VLOOKUP(miDesplegable&\"*\",$A9:$A$244,1,FALSE),\"\")=\"\",\"\",IFERROR(VLOOKUP(miDesplegable&\"*\",$A9:$A$244,1,FALSE),\"\"))","v":"Arabia Saudita"},null,"Arabia Saudita",null,"Arabia Saudita",null,"Arabia Saudita","Copyright:","Creative Commons 3.0"]
["Argelia",null,{"$f":"IF(IFERROR(VLOOKUP(miDesplegable&\"*\",$A10:$A$244,1,FALSE),\"\")=\"\",\"\",IFERROR(VLOOKUP(miDesplegable&\"*\",$A10:$A$244,1,FALSE),\"\"))","v":"Argelia"},null,"Argelia",null,"Argelia",null,"Argelia"]
["Argentina",null,{"$f":"IF(IFERROR(VLOOKUP(miDesplegable&\"*\",$A11:$A$244,1,FALSE),\"\")=\"\",\"\",IFERROR(VLOOKUP(miDesplegable&\"*\",$A11:$A$244,1,FALSE),\"\"))","v":"Argentina"},null,"Argentina",null,"Argentina",null,"Argentina"]
["Armenia",null,{"$f":"IF(IFERROR(VLOOKUP(miDesplegable&\"*\",$A12:$A$244,1,FALSE),\"\")=\"\",\"\",IFERROR(VLOOKUP(miDesplegable&\"*\",$A12:$A$244,1,FALSE),\"\"))","v":"Armenia"},null,"Armenia",null,"Armenia",null,"Armenia"]
["Aruba",null,{"$f":"IF(IFERROR(VLOOKUP(miDesplegable&\"*\",$A13:$A$244,1,FALSE),\"\")=\"\",\"\",IFERROR(VLOOKUP(miDesplegable&\"*\",$A13:$A$244,1,FALSE),\"\"))","v":"Aruba"},null,"Aruba",null,"Aruba",null,"Aruba"]
["Australia",null,{"$f":"IF(IFERROR(VLOOKUP(miDesplegable&\"*\",$A14:$A$244,1,FALSE),\"\")=\"\",\"\",IFERROR(VLOOKUP(miDesplegable&\"*\",$A14:$A$244,1,FALSE),\"\"))","v":"Australia"},null,"Australia",null,"Australia",null,"Australia"]
["Austria",null,{"$f":"IF(IFERROR(VLOOKUP(miDesplegable&\"*\",$A15:$A$244,1,FALSE),\"\")=\"\",\"\",IFERROR(VLOOKUP(miDesplegable&\"*\",$A15:$A$244,1,FALSE),\"\"))","v":"Austria"},null,"Austria",null,"Austria",null,"Austria"]
["Azerbaiyán",null,{"$f":"IF(IFERROR(VLOOKUP(miDesplegable&\"*\",$A16:$A$244,1,FALSE),\"\")=\"\",\"\",IFERROR(VLOOKUP(miDesplegable&\"*\",$A16:$A$244,1,FALSE),\"\"))","v":"Azerbaiyán"},null,"Azerbaiyán",null,"Azerbaiyán",null,"Azerbaiyán"]
["Bahamas",null,{"$f":"IF(IFERROR(VLOOKUP(miDesplegable&\"*\",$A17:$A$244,1,FALSE),\"\")=\"\",\"\",IFERROR(VLOOKUP(miDesplegable&\"*\",$A17:$A$244,1,FALSE),\"\"))","v":"Bahamas"},null,"Bahamas",null,"Bahamas",null,"Bahamas"]
["Bangladés",null,{"$f":"IF(IFERROR(VLOOKUP(miDesplegable&\"*\",$A18:$A$244,1,FALSE),\"\")=\"\",\"\",IFERROR(VLOOKUP(miDesplegable&\"*\",$A18:$A$244,1,FALSE),\"\"))","v":"Bangladés"},null,"Bangladés",null,"Bangladés",null,"Bangladés"]
["Barbados",null,{"$f":"IF(IFERROR(VLOOKUP(miDesplegable&\"*\",$A19:$A$244,1,FALSE),\"\")=\"\",\"\",IFERROR(VLOOKUP(miDesplegable&\"*\",$A19:$A$244,1,FALSE),\"\"))","v":"Barbados"},null,"Barbados",null,"Barbados",null,"Barbados"]
["Baréin",null,{"$f":"IF(IFERROR(VLOOKUP(miDesplegable&\"*\",$A20:$A$244,1,FALSE),\"\")=\"\",\"\",IFERROR(VLOOKUP(miDesplegable&\"*\",$A20:$A$244,1,FALSE),\"\"))","v":"Baréin"},null,"Baréin",null,"Baréin",null,"Baréin"]
["Bélgica",null,{"$f":"IF(IFERROR(VLOOKUP(miDesplegable&\"*\",$A21:$A$244,1,FALSE),\"\")=\"\",\"\",IFERROR(VLOOKUP(miDesplegable&\"*\",$A21:$A$244,1,FALSE),\"\"))","v":"Bélgica"},null,"Bélgica",null,"Bélgica",null,"Bélgica"]
["Belice",null,{"$f":"IF(IFERROR(VLOOKUP(miDesplegable&\"*\",$A22:$A$244,1,FALSE),\"\")=\"\",\"\",IFERROR(VLOOKUP(miDesplegable&\"*\",$A22:$A$244,1,FALSE),\"\"))","v":"Belice"},null,"Belice",null,"Belice",null,"Belice"]
["Benín",null,{"$f":"IF(IFERROR(VLOOKUP(miDesplegable&\"*\",$A23:$A$244,1,FALSE),\"\")=\"\",\"\",IFERROR(VLOOKUP(miDesplegable&\"*\",$A23:$A$244,1,FALSE),\"\"))","v":"Benín"},null,"Benín",null,"Benín",null,"Benín"]
["Bermudas",null,{"$f":"IF(IFERROR(VLOOKUP(miDesplegable&\"*\",$A24:$A$244,1,FALSE),\"\")=\"\",\"\",IFERROR(VLOOKUP(miDesplegable&\"*\",$A24:$A$244,1,FALSE),\"\"))","v":"Bermudas"},null,"Bermudas",null,"Bermudas",null,"Bermudas"]
["Bielorrusia",null,{"$f":"IF(IFERROR(VLOOKUP(miDesplegable&\"*\",$A25:$A$244,1,FALSE),\"\")=\"\",\"\",IFERROR(VLOOKUP(miDesplegable&\"*\",$A25:$A$244,1,FALSE),\"\"))","v":"Bielorrusia"},null,"Bielorrusia",null,"Bielorrusia",null,"Bielorrusia"]
["Birmania",null,{"$f":"IF(IFERROR(VLOOKUP(miDesplegable&\"*\",$A26:$A$244,1,FALSE),\"\")=\"\",\"\",IFERROR(VLOOKUP(miDesplegable&\"*\",$A26:$A$244,1,FALSE),\"\"))","v":"Birmania"},null,"Birmania",null,"Birmania",null,"Birmania"]
["Bolivia",null,{"$f":"IF(IFERROR(VLOOKUP(miDesplegable&\"*\",$A27:$A$244,1,FALSE),\"\")=\"\",\"\",IFERROR(VLOOKUP(miDesplegable&\"*\",$A27:$A$244,1,FALSE),\"\"))","v":"Bolivia"},null,"Bolivia",null,"Bolivia",null,"Bolivia"]
["Bosnia y Herzegovina",null,{"$f":"IF(IFERROR(VLOOKUP(miDesplegable&\"*\",$A28:$A$244,1,FALSE),\"\")=\"\",\"\",IFERROR(VLOOKUP(miDesplegable&\"*\",$A28:$A$244,1,FALSE),\"\"))","v":"Bosnia y Herzegovina"},null,"Bosnia y Herzegovina",null,"Bosnia y Herzegovina",null,"Bosnia y Herzegovina"]
["Botsuana",null,{"$f":"IF(IFERROR(VLOOKUP(miDesplegable&\"*\",$A29:$A$244,1,FALSE),\"\")=\"\",\"\",IFERROR(VLOOKUP(miDesplegable&\"*\",$A29:$A$244,1,FALSE),\"\"))","v":"Botsuana"},null,"Botsuana",null,"Botsuana",null,"Botsuana"]
["Brasil",null,{"$f":"IF(IFERROR(VLOOKUP(miDesplegable&\"*\",$A30:$A$244,1,FALSE),\"\")=\"\",\"\",IFERROR(VLOOKUP(miDesplegable&\"*\",$A30:$A$244,1,FALSE),\"\"))","v":"Brasil"},null,"Brasil",null,"Brasil",null,"Brasil"]
["Brunéi",null,{"$f":"IF(IFERROR(VLOOKUP(miDesplegable&\"*\",$A31:$A$244,1,FALSE),\"\")=\"\",\"\",IFERROR(VLOOKUP(miDesplegable&\"*\",$A31:$A$244,1,FALSE),\"\"))","v":"Brunéi"},null,"Brunéi",null,"Brunéi",null,"Brunéi"]
["Bulgaria",null,{"$f":"IF(IFERROR(VLOOKUP(miDesplegable&\"*\",$A32:$A$244,1,FALSE),\"\")=\"\",\"\",IFERROR(VLOOKUP(miDesplegable&\"*\",$A32:$A$244,1,FALSE),\"\"))","v":"Bulgaria"},null,"Bulgaria",null,"Bulgaria",null,"Bulgaria"]
["Burkina Faso",null,{"$f":"IF(IFERROR(VLOOKUP(miDesplegable&\"*\",$A33:$A$244,1,FALSE),\"\")=\"\",\"\",IFERROR(VLOOKUP(miDesplegable&\"*\",$A33:$A$244,1,FALSE),\"\"))","v":"Burkina Faso"},null,"Burkina Faso",null,"Burkina Faso",null,"Burkina Faso"]
["Burundi",null,{"$f":"IF(IFERROR(VLOOKUP(miDesplegable&\"*\",$A34:$A$244,1,FALSE),\"\")=\"\",\"\",IFERROR(VLOOKUP(miDesplegable&\"*\",$A34:$A$244,1,FALSE),\"\"))","v":"Burundi"},null,"Burundi",null,"Burundi",null,"Burundi"]
["Bután",null,{"$f":"IF(IFERROR(VLOOKUP(miDesplegable&\"*\",$A35:$A$244,1,FALSE),\"\")=\"\",\"\",IFERROR(VLOOKUP(miDesplegable&\"*\",$A35:$A$244,1,FALSE),\"\"))","v":"Bután"},null,"Bután",null,"Bután",null,"Bután"]
["Cabo Verde",null,{"$f":"IF(IFERROR(VLOOKUP(miDesplegable&\"*\",$A36:$A$244,1,FALSE),\"\")=\"\",\"\",IFERROR(VLOOKUP(miDesplegable&\"*\",$A36:$A$244,1,FALSE),\"\"))","v":"Cabo Verde"},null,"Cabo Verde",null,"Cabo Verde",null,"Cabo Verde"]
["Camboya",null,{"$f":"IF(IFERROR(VLOOKUP(miDesplegable&\"*\",$A37:$A$244,1,FALSE),\"\")=\"\",\"\",IFERROR(VLOOKUP(miDesplegable&\"*\",$A37:$A$244,1,FALSE),\"\"))","v":"Camboya"},null,"Camboya",null,"Camboya",null,"Camboya"]
["Camerún",null,{"$f":"IF(IFERROR(VLOOKUP(miDesplegable&\"*\",$A38:$A$244,1,FALSE),\"\")=\"\",\"\",IFERROR(VLOOKUP(miDesplegable&\"*\",$A38:$A$244,1,FALSE),\"\"))","v":"Camerún"},null,"Camerún",null,"Camerún",null,"Camerún"]
["Canadá",null,{"$f":"IF(IFERROR(VLOOKUP(miDesplegable&\"*\",$A39:$A$244,1,FALSE),\"\")=\"\",\"\",IFERROR(VLOOKUP(miDesplegable&\"*\",$A39:$A$244,1,FALSE),\"\"))","v":"Canadá"},null,"Canadá",null,"Canadá",null,"Canadá"]
["Caribe Neerlandés",null,{"$f":"IF(IFERROR(VLOOKUP(miDesplegable&\"*\",$A40:$A$244,1,FALSE),\"\")=\"\",\"\",IFERROR(VLOOKUP(miDesplegable&\"*\",$A40:$A$244,1,FALSE),\"\"))","v":"Caribe Neerlandés"},null,"Caribe Neerlandés",null,"Caribe Neerlandés",null,"Caribe Neerlandés"]
["Catar",null,{"$f":"IF(IFERROR(VLOOKUP(miDesplegable&\"*\",$A41:$A$244,1,FALSE),\"\")=\"\",\"\",IFERROR(VLOOKUP(miDesplegable&\"*\",$A41:$A$244,1,FALSE),\"\"))","v":"Catar"},null,"Catar",null,"Catar",null,"Catar"]
["Chad",null,{"$f":"IF(IFERROR(VLOOKUP(miDesplegable&\"*\",$A42:$A$244,1,FALSE),\"\")=\"\",\"\",IFERROR(VLOOKUP(miDesplegable&\"*\",$A42:$A$244,1,FALSE),\"\"))","v":"Chad"},null,"Chad",null,"Chad",null,"Chad"]
["Chile",null,{"$f":"IF(IFERROR(VLOOKUP(miDesplegable&\"*\",$A43:$A$244,1,FALSE),\"\")=\"\",\"\",IFERROR(VLOOKUP(miDesplegable&\"*\",$A43:$A$244,1,FALSE),\"\"))","v":"Chile"},null,"Chile",null,"Chile",null,"Chile"]
["China",null,{"$f":"IF(IFERROR(VLOOKUP(miDesplegable&\"*\",$A44:$A$244,1,FALSE),\"\")=\"\",\"\",IFERROR(VLOOKUP(miDesplegable&\"*\",$A44:$A$244,1,FALSE),\"\"))","v":"China"},null,"China",null,"China",null,"China"]
["Chipre",null,{"$f":"IF(IFERROR(VLOOKUP(miDesplegable&\"*\",$A45:$A$244,1,FALSE),\"\")=\"\",\"\",IFERROR(VLOOKUP(miDesplegable&\"*\",$A45:$A$244,1,FALSE),\"\"))","v":"Chipre"},null,"Chipre",null,"Chipre",null,"Chipre"]
["Ciudad del Vaticano",null,{"$f":"IF(IFERROR(VLOOKUP(miDesplegable&\"*\",$A46:$A$244,1,FALSE),\"\")=\"\",\"\",IFERROR(VLOOKUP(miDesplegable&\"*\",$A46:$A$244,1,FALSE),\"\"))","v":"Ciudad del Vaticano"},null,"Ciudad del Vaticano",null,"Ciudad del Vaticano",null,"Ciudad del Vaticano"]
["Colombia",null,{"$f":"IF(IFERROR(VLOOKUP(miDesplegable&\"*\",$A47:$A$244,1,FALSE),\"\")=\"\",\"\",IFERROR(VLOOKUP(miDesplegable&\"*\",$A47:$A$244,1,FALSE),\"\"))","v":"Colombia"},null,"Colombia",null,"Colombia",null,"Colombia"]
["Comoras",null,{"$f":"IF(IFERROR(VLOOKUP(miDesplegable&\"*\",$A48:$A$244,1,FALSE),\"\")=\"\",\"\",IFERROR(VLOOKUP(miDesplegable&\"*\",$A48:$A$244,1,FALSE),\"\"))","v":"Comoras"},null,"Comoras",null,"Comoras",null,"Comoras"]
["Corea del Norte",null,{"$f":"IF(IFERROR(VLOOKUP(miDesplegable&\"*\",$A49:$A$244,1,FALSE),\"\")=\"\",\"\",IFERROR(VLOOKUP(miDesplegable&\"*\",$A49:$A$244,1,FALSE),\"\"))","v":"Corea del Norte"},null,"Corea del Norte",null,"Corea del Norte",null,"Corea del Norte"]
["Corea del Sur",null,{"$f":"IF(IFERROR(VLOOKUP(miDesplegable&\"*\",$A50:$A$244,1,FALSE),\"\")=\"\",\"\",IFERROR(VLOOKUP(miDesplegable&\"*\",$A50:$A$244,1,FALSE),\"\"))","v":"Corea del Sur"},null,"Corea del Sur",null,"Corea del Sur",null,"Corea del Sur"]
["Costa de Marfil",null,{"$f":"IF(IFERROR(VLOOKUP(miDesplegable&\"*\",$A51:$A$244,1,FALSE),\"\")=\"\",\"\",IFERROR(VLOOKUP(miDesplegable&\"*\",$A51:$A$244,1,FALSE),\"\"))","v":"Costa de Marfil"},null,"Costa de Marfil",null,"Costa de Marfil",null,"Costa de Marfil"]
["Costa Rica",null,{"$f":"IF(IFERROR(VLOOKUP(miDesplegable&\"*\",$A52:$A$244,1,FALSE),\"\")=\"\",\"\",IFERROR(VLOOKUP(miDesplegable&\"*\",$A52:$A$244,1,FALSE),\"\"))","v":"Costa Rica"},null,"Costa Rica",null,"Costa Rica",null,"Costa Rica"]
["Crimea - Ucrania",null,{"$f":"IF(IFERROR(VLOOKUP(miDesplegable&\"*\",$A53:$A$244,1,FALSE),\"\")=\"\",\"\",IFERROR(VLOOKUP(miDesplegable&\"*\",$A53:$A$244,1,FALSE),\"\"))","v":"Crimea - Ucrania"},null,"Crimea - Ucrania",null,"Crimea - Ucrania",null,"Crimea - Ucrania"]
["Croacia",null,{"$f":"IF(IFERROR(VLOOKUP(miDesplegable&\"*\",$A54:$A$244,1,FALSE),\"\")=\"\",\"\",IFERROR(VLOOKUP(miDesplegable&\"*\",$A54:$A$244,1,FALSE),\"\"))","v":"Croacia"},null,"Croacia",null,"Croacia",null,"Croacia"]
["Cuba",null,{"$f":"IF(IFERROR(VLOOKUP(miDesplegable&\"*\",$A55:$A$244,1,FALSE),\"\")=\"\",\"\",IFERROR(VLOOKUP(miDesplegable&\"*\",$A55:$A$244,1,FALSE),\"\"))","v":"Cuba"},null,"Cuba",null,"Cuba",null,"Cuba"]
["Curazao",null,{"$f":"IF(IFERROR(VLOOKUP(miDesplegable&\"*\",$A56:$A$244,1,FALSE),\"\")=\"\",\"\",IFERROR(VLOOKUP(miDesplegable&\"*\",$A56:$A$244,1,FALSE),\"\"))","v":"Curazao"},null,"Curazao",null,"Curazao",null,"Curazao"]
["Dinamarca",null,{"$f":"IF(IFERROR(VLOOKUP(miDesplegable&\"*\",$A57:$A$244,1,FALSE),\"\")=\"\",\"\",IFERROR(VLOOKUP(miDesplegable&\"*\",$A57:$A$244,1,FALSE),\"\"))","v":"Dinamarca"},null,"Dinamarca",null,"Dinamarca",null,"Dinamarca"]
["Dominica",null,{"$f":"IF(IFERROR(VLOOKUP(miDesplegable&\"*\",$A58:$A$244,1,FALSE),\"\")=\"\",\"\",IFERROR(VLOOKUP(miDesplegable&\"*\",$A58:$A$244,1,FALSE),\"\"))","v":"Dominica"},null,"Dominica",null,"Dominica",null,"Dominica"]
["Ecuador",null,{"$f":"IF(IFERROR(VLOOKUP(miDesplegable&\"*\",$A59:$A$244,1,FALSE),\"\")=\"\",\"\",IFERROR(VLOOKUP(miDesplegable&\"*\",$A59:$A$244,1,FALSE),\"\"))","v":"Ecuador"},null,"Ecuador",null,"Ecuador",null,"Ecuador"]
["Egipto",null,{"$f":"IF(IFERROR(VLOOKUP(miDesplegable&\"*\",$A60:$A$244,1,FALSE),\"\")=\"\",\"\",IFERROR(VLOOKUP(miDesplegable&\"*\",$A60:$A$244,1,FALSE),\"\"))","v":"Egipto"},null,"Egipto",null,"Egipto",null,"Egipto"]
["El Salvador",null,{"$f":"IF(IFERROR(VLOOKUP(miDesplegable&\"*\",$A61:$A$244,1,FALSE),\"\")=\"\",\"\",IFERROR(VLOOKUP(miDesplegable&\"*\",$A61:$A$244,1,FALSE),\"\"))","v":"El Salvador"},null,"El Salvador",null,"El Salvador",null,"El Salvador"]
["Emiratos Árabes Unidos",null,{"$f":"IF(IFERROR(VLOOKUP(miDesplegable&\"*\",$A62:$A$244,1,FALSE),\"\")=\"\",\"\",IFERROR(VLOOKUP(miDesplegable&\"*\",$A62:$A$244,1,FALSE),\"\"))","v":"Emiratos Árabes Unidos"},null,"Emiratos Árabes Unidos",null,"Emiratos Árabes Unidos",null,"Emiratos Árabes Unidos"]
["Eritrea",null,{"$f":"IF(IFERROR(VLOOKUP(miDesplegable&\"*\",$A63:$A$244,1,FALSE),\"\")=\"\",\"\",IFERROR(VLOOKUP(miDesplegable&\"*\",$A63:$A$244,1,FALSE),\"\"))","v":"Eritrea"},null,"Eritrea",null,"Eritrea",null,"Eritrea"]
["Eslovaquia",null,{"$f":"IF(IFERROR(VLOOKUP(miDesplegable&\"*\",$A64:$A$244,1,FALSE),\"\")=\"\",\"\",IFERROR(VLOOKUP(miDesplegable&\"*\",$A64:$A$244,1,FALSE),\"\"))","v":"Eslovaquia"},null,"Eslovaquia",null,"Eslovaquia",null,"Eslovaquia"]
["Eslovenia",null,{"$f":"IF(IFERROR(VLOOKUP(miDesplegable&\"*\",$A65:$A$244,1,FALSE),\"\")=\"\",\"\",IFERROR(VLOOKUP(miDesplegable&\"*\",$A65:$A$244,1,FALSE),\"\"))","v":"Eslovenia"},null,"Eslovenia",null,"Eslovenia",null,"Eslovenia"]
["España",null,{"$f":"IF(IFERROR(VLOOKUP(miDesplegable&\"*\",$A66:$A$244,1,FALSE),\"\")=\"\",\"\",IFERROR(VLOOKUP(miDesplegable&\"*\",$A66:$A$244,1,FALSE),\"\"))","v":"España"},null,"España",null,"España",null,"España"]
["Estados Unidos",null,{"$f":"IF(IFERROR(VLOOKUP(miDesplegable&\"*\",$A67:$A$244,1,FALSE),\"\")=\"\",\"\",IFERROR(VLOOKUP(miDesplegable&\"*\",$A67:$A$244,1,FALSE),\"\"))","v":"Estados Unidos"},null,"Estados Unidos",null,"Estados Unidos",null,"Estados Unidos"]
["Estonia",null,{"$f":"IF(IFERROR(VLOOKUP(miDesplegable&\"*\",$A68:$A$244,1,FALSE),\"\")=\"\",\"\",IFERROR(VLOOKUP(miDesplegable&\"*\",$A68:$A$244,1,FALSE),\"\"))","v":"Estonia"},null,"Estonia",null,"Estonia",null,"Estonia"]
["Etiopía",null,{"$f":"IF(IFERROR(VLOOKUP(miDesplegable&\"*\",$A69:$A$244,1,FALSE),\"\")=\"\",\"\",IFERROR(VLOOKUP(miDesplegable&\"*\",$A69:$A$244,1,FALSE),\"\"))","v":"Etiopía"},null,"Etiopía",null,"Etiopía",null,"Etiopía"]
["Filipinas",null,{"$f":"IF(IFERROR(VLOOKUP(miDesplegable&\"*\",$A70:$A$244,1,FALSE),\"\")=\"\",\"\",IFERROR(VLOOKUP(miDesplegable&\"*\",$A70:$A$244,1,FALSE),\"\"))","v":"Filipinas"},null,"Filipinas",null,"Filipinas",null,"Filipinas"]
["Finlandia",null,{"$f":"IF(IFERROR(VLOOKUP(miDesplegable&\"*\",$A71:$A$244,1,FALSE),\"\")=\"\",\"\",IFERROR(VLOOKUP(miDesplegable&\"*\",$A71:$A$244,1,FALSE),\"\"))","v":"Finlandia"},null,"Finlandia",null,"Finlandia",null,"Finlandia"]
["Fiyi",null,{"$f":"IF(IFERROR(VLOOKUP(miDesplegable&\"*\",$A72:$A$244,1,FALSE),\"\")=\"\",\"\",IFERROR(VLOOKUP(miDesplegable&\"*\",$A72:$A$244,1,FALSE),\"\"))","v":"Fiyi"},null,"Fiyi",null,"Fiyi",null,"Fiyi"]
["Francia",null,{"$f":"IF(IFERROR(VLOOKUP(miDesplegable&\"*\",$A73:$A$244,1,FALSE),\"\")=\"\",\"\",IFERROR(VLOOKUP(miDesplegable&\"*\",$A73:$A$244,1,FALSE),\"\"))","v":"Francia"},null,"Francia",null,"Francia",null,"Francia"]
["Gabón",null,{"$f":"IF(IFERROR(VLOOKUP(miDesplegable&\"*\",$A74:$A$244,1,FALSE),\"\")=\"\",\"\",IFERROR(VLOOKUP(miDesplegable&\"*\",$A74:$A$244,1,FALSE),\"\"))","v":"Gabón"},null,"Gabón",null,"Gabón",null,"Gabón"]
["Gambia",null,{"$f":"IF(IFERROR(VLOOKUP(miDesplegable&\"*\",$A75:$A$244,1,FALSE),\"\")=\"\",\"\",IFERROR(VLOOKUP(miDesplegable&\"*\",$A75:$A$244,1,FALSE),\"\"))","v":"Gambia"},null,"Gambia",null,"Gambia",null,"Gambia"]
["Georgia",null,{"$f":"IF(IFERROR(VLOOKUP(miDesplegable&\"*\",$A76:$A$244,1,FALSE),\"\")=\"\",\"\",IFERROR(VLOOKUP(miDesplegable&\"*\",$A76:$A$244,1,FALSE),\"\"))","v":"Georgia"},null,"Georgia",null,"Georgia",null,"Georgia"]
["Ghana",null,{"$f":"IF(IFERROR(VLOOKUP(miDesplegable&\"*\",$A77:$A$244,1,FALSE),\"\")=\"\",\"\",IFERROR(VLOOKUP(miDesplegable&\"*\",$A77:$A$244,1,FALSE),\"\"))","v":"Ghana"},null,"Ghana",null,"Ghana",null,"Ghana"]
["Gibraltar",null,{"$f":"IF(IFERROR(VLOOKUP(miDesplegable&\"*\",$A78:$A$244,1,FALSE),\"\")=\"\",\"\",IFERROR(VLOOKUP(miDesplegable&\"*\",$A78:$A$244,1,FALSE),\"\"))","v":"Gibraltar"},null,"Gibraltar",null,"Gibraltar",null,"Gibraltar"]
["Granada",null,{"$f":"IF(IFERROR(VLOOKUP(miDesplegable&\"*\",$A79:$A$244,1,FALSE),\"\")=\"\",\"\",IFERROR(VLOOKUP(miDesplegable&\"*\",$A79:$A$244,1,FALSE),\"\"))","v":"Granada"},null,"Granada",null,"Granada",null,"Granada"]
["Grecia",null,{"$f":"IF(IFERROR(VLOOKUP(miDesplegable&\"*\",$A80:$A$244,1,FALSE),\"\")=\"\",\"\",IFERROR(VLOOKUP(miDesplegable&\"*\",$A80:$A$244,1,FALSE),\"\"))","v":"Grecia"},null,"Grecia",null,"Grecia",null,"Grecia"]
["Groenlandia",null,{"$f":"IF(IFERROR(VLOOKUP(miDesplegable&\"*\",$A81:$A$244,1,FALSE),\"\")=\"\",\"\",IFERROR(VLOOKUP(miDesplegable&\"*\",$A81:$A$244,1,FALSE),\"\"))","v":"Groenlandia"},null,"Groenlandia",null,"Groenlandia",null,"Groenlandia"]
["Guadalupe",null,{"$f":"IF(IFERROR(VLOOKUP(miDesplegable&\"*\",$A82:$A$244,1,FALSE),\"\")=\"\",\"\",IFERROR(VLOOKUP(miDesplegable&\"*\",$A82:$A$244,1,FALSE),\"\"))","v":"Guadalupe"},null,"Guadalupe",null,"Guadalupe",null,"Guadalupe"]
["Guam",null,{"$f":"IF(IFERROR(VLOOKUP(miDesplegable&\"*\",$A83:$A$244,1,FALSE),\"\")=\"\",\"\",IFERROR(VLOOKUP(miDesplegable&\"*\",$A83:$A$244,1,FALSE),\"\"))","v":"Guam"},null,"Guam",null,"Guam",null,"Guam"]
["Guatemala",null,{"$f":"IF(IFERROR(VLOOKUP(miDesplegable&\"*\",$A84:$A$244,1,FALSE),\"\")=\"\",\"\",IFERROR(VLOOKUP(miDesplegable&\"*\",$A84:$A$244,1,FALSE),\"\"))","v":"Guatemala"},null,"Guatemala",null,"Guatemala",null,"Guatemala"]
["Guayana Francesa",null,{"$f":"IF(IFERROR(VLOOKUP(miDesplegable&\"*\",$A85:$A$244,1,FALSE),\"\")=\"\",\"\",IFERROR(VLOOKUP(miDesplegable&\"*\",$A85:$A$244,1,FALSE),\"\"))","v":"Guayana Francesa"},null,"Guayana Francesa",null,"Guayana Francesa",null,"Guayana Francesa"]
["Guernsey",null,{"$f":"IF(IFERROR(VLOOKUP(miDesplegable&\"*\",$A86:$A$244,1,FALSE),\"\")=\"\",\"\",IFERROR(VLOOKUP(miDesplegable&\"*\",$A86:$A$244,1,FALSE),\"\"))","v":"Guernsey"},null,"Guernsey",null,"Guernsey",null,"Guernsey"]
["Guinea",null,{"$f":"IF(IFERROR(VLOOKUP(miDesplegable&\"*\",$A87:$A$244,1,FALSE),\"\")=\"\",\"\",IFERROR(VLOOKUP(miDesplegable&\"*\",$A87:$A$244,1,FALSE),\"\"))","v":"Guinea"},null,"Guinea",null,"Guinea",null,"Guinea"]
["Guinea Ecuatorial",null,{"$f":"IF(IFERROR(VLOOKUP(miDesplegable&\"*\",$A88:$A$244,1,FALSE),\"\")=\"\",\"\",IFERROR(VLOOKUP(miDesplegable&\"*\",$A88:$A$244,1,FALSE),\"\"))","v":"Guinea Ecuatorial"},null,"Guinea Ecuatorial",null,"Guinea Ecuatorial",null,"Guinea Ecuatorial"]
["Guinea-Bisáu",null,{"$f":"IF(IFERROR(VLOOKUP(miDesplegable&\"*\",$A89:$A$244,1,FALSE),\"\")=\"\",\"\",IFERROR(VLOOKUP(miDesplegable&\"*\",$A89:$A$244,1,FALSE),\"\"))","v":"Guinea-Bisáu"},null,"Guinea-Bisáu",null,"Guinea-Bisáu",null,"Guinea-Bisáu"]
["Guyana",null,{"$f":"IF(IFERROR(VLOOKUP(miDesplegable&\"*\",$A90:$A$244,1,FALSE),\"\")=\"\",\"\",IFERROR(VLOOKUP(miDesplegable&\"*\",$A90:$A$244,1,FALSE),\"\"))","v":"Guyana"},null,"Guyana",null,"Guyana",null,"Guyana"]
["Haití",null,{"$f":"IF(IFERROR(VLOOKUP(miDesplegable&\"*\",$A91:$A$244,1,FALSE),\"\")=\"\",\"\",IFERROR(VLOOKUP(miDesplegable&\"*\",$A91:$A$244,1,FALSE),\"\"))","v":"Haití"},null,"Haití",null,"Haití",null,"Haití"]
["Honduras",null,{"$f":"IF(IFERROR(VLOOKUP(miDesplegable&\"*\",$A92:$A$244,1,FALSE),\"\")=\"\",\"\",IFERROR(VLOOKUP(miDesplegable&\"*\",$A92:$A$244,1,FALSE),\"\"))","v":"Honduras"},null,"Honduras",null,"Honduras",null,"Honduras"]
["Hungría",null,{"$f":"IF(IFERROR(VLOOKUP(miDesplegable&\"*\",$A93:$A$244,1,FALSE),\"\")=\"\",\"\",IFERROR(VLOOKUP(miDesplegable&\"*\",$A93:$A$244,1,FALSE),\"\"))","v":"Hungría"},null,"Hungría",null,"Hungría",null,"Hungría"]
["India",null,{"$f":"IF(IFERROR(VLOOKUP(miDesplegable&\"*\",$A94:$A$244,1,FALSE),\"\")=\"\",\"\",IFERROR(VLOOKUP(miDesplegable&\"*\",$A94:$A$244,1,FALSE),\"\"))","v":"India"},null,"India",null,"India",null,"India"]
["Indonesia",null,{"$f":"IF(IFERROR(VLOOKUP(miDesplegable&\"*\",$A95:$A$244,1,FALSE),\"\")=\"\",\"\",IFERROR(VLOOKUP(miDesplegable&\"*\",$A95:$A$244,1,FALSE),\"\"))","v":"Indonesia"},null,"Indonesia",null,"Indonesia",null,"Indonesia"]
["Irak",null,{"$f":"IF(IFERROR(VLOOKUP(miDesplegable&\"*\",$A96:$A$244,1,FALSE),\"\")=\"\",\"\",IFERROR(VLOOKUP(miDesplegable&\"*\",$A96:$A$244,1,FALSE),\"\"))","v":"Irak"},null,"Irak",null,"Irak",null,"Irak"]
["Irán",null,{"$f":"IF(IFERROR(VLOOKUP(miDesplegable&\"*\",$A97:$A$244,1,FALSE),\"\")=\"\",\"\",IFERROR(VLOOKUP(miDesplegable&\"*\",$A97:$A$244,1,FALSE),\"\"))","v":"Irán"},null,"Irán",null,"Irán",null,"Irán"]
["Irlanda",null,{"$f":"IF(IFERROR(VLOOKUP(miDesplegable&\"*\",$A98:$A$244,1,FALSE),\"\")=\"\",\"\",IFERROR(VLOOKUP(miDesplegable&\"*\",$A98:$A$244,1,FALSE),\"\"))","v":"Irlanda"},null,"Irlanda",null,"Irlanda",null,"Irlanda"]
["Isla de Man",null,{"$f":"IF(IFERROR(VLOOKUP(miDesplegable&\"*\",$A99:$A$244,1,FALSE),\"\")=\"\",\"\",IFERROR(VLOOKUP(miDesplegable&\"*\",$A99:$A$244,1,FALSE),\"\"))","v":"Isla de Man"},null,"Isla de Man",null,"Isla de Man",null,"Isla de Man"]
["Isla desconocida",null,{"$f":"IF(IFERROR(VLOOKUP(miDesplegable&\"*\",$A100:$A$244,1,FALSE),\"\")=\"\",\"\",IFERROR(VLOOKUP(miDesplegable&\"*\",$A100:$A$244,1,FALSE),\"\"))","v":"Isla desconocida"},null,"Isla desconocida",null,"Isla desconocida",null,"Isla desconocida"]
["Isla desconocida1",null,{"$f":"IF(IFERROR(VLOOKUP(miDesplegable&\"*\",$A101:$A$244,1,FALSE),\"\")=\"\",\"\",IFERROR(VLOOKUP(miDesplegable&\"*\",$A101:$A$244,1,FALSE),\"\"))","v":"Isla desconocida1"},null,"Isla desconocida1",null,"Isla desconocida1",null,"Isla desconocida1"]
["Isla desconocida2",null,{"$f":"IF(IFERROR(VLOOKUP(miDesplegable&\"*\",$A102:$A$244,1,FALSE),\"\")=\"\",\"\",IFERROR(VLOOKUP(miDesplegable&\"*\",$A102:$A$244,1,FALSE),\"\"))","v":"Isla desconocida2"},null,"Isla desconocida2",null,"Isla desconocida2",null,"Isla desconocida2"]
["Isla desconocida3",null,{"$f":"IF(IFERROR(VLOOKUP(miDesplegable&\"*\",$A103:$A$244,1,FALSE),\"\")=\"\",\"\",IFERROR(VLOOKUP(miDesplegable&\"*\",$A103:$A$244,1,FALSE),\"\"))","v":"Isla desconocida3"},null,"Isla desconocida3",null,"Isla desconocida3",null,"Isla desconocida3"]
["Isla Diomedes - Rusia",null,{"$f":"IF(IFERROR(VLOOKUP(miDesplegable&\"*\",$A104:$A$244,1,FALSE),\"\")=\"\",\"\",IFERROR(VLOOKUP(miDesplegable&\"*\",$A104:$A$244,1,FALSE),\"\"))","v":"Isla Diomedes - Rusia"},null,"Isla Diomedes - Rusia",null,"Isla Diomedes - Rusia",null,"Isla Diomedes - Rusia"]
["Islandia",null,{"$f":"IF(IFERROR(VLOOKUP(miDesplegable&\"*\",$A105:$A$244,1,FALSE),\"\")=\"\",\"\",IFERROR(VLOOKUP(miDesplegable&\"*\",$A105:$A$244,1,FALSE),\"\"))","v":"Islandia"},null,"Islandia",null,"Islandia",null,"Islandia"]
["Islas Caimán",null,{"$f":"IF(IFERROR(VLOOKUP(miDesplegable&\"*\",$A106:$A$244,1,FALSE),\"\")=\"\",\"\",IFERROR(VLOOKUP(miDesplegable&\"*\",$A106:$A$244,1,FALSE),\"\"))","v":"Islas Caimán"},null,"Islas Caimán",null,"Islas Caimán",null,"Islas Caimán"]
["Islas Cook",null,{"$f":"IF(IFERROR(VLOOKUP(miDesplegable&\"*\",$A107:$A$244,1,FALSE),\"\")=\"\",\"\",IFERROR(VLOOKUP(miDesplegable&\"*\",$A107:$A$244,1,FALSE),\"\"))","v":"Islas Cook"},null,"Islas Cook",null,"Islas Cook",null,"Islas Cook"]
["Islas del Pacífico - Estados Unidos",null,{"$f":"IF(IFERROR(VLOOKUP(miDesplegable&\"*\",$A108:$A$244,1,FALSE),\"\")=\"\",\"\",IFERROR(VLOOKUP(miDesplegable&\"*\",$A108:$A$244,1,FALSE),\"\"))","v":"Islas del Pacífico - Estados Unidos"},null,"Islas del Pacífico - Estados Unidos",null,"Islas del Pacífico - Estados Unidos",null,"Islas del Pacífico - Estados Unidos"]
["Islas Feroe",null,{"$f":"IF(IFERROR(VLOOKUP(miDesplegable&\"*\",$A109:$A$244,1,FALSE),\"\")=\"\",\"\",IFERROR(VLOOKUP(miDesplegable&\"*\",$A109:$A$244,1,FALSE),\"\"))","v":"Islas Feroe"},null,"Islas Feroe",null,"Islas Feroe",null,"Islas Feroe"]
["Islas Georgias y Sandwich",null,{"$f":"IF(IFERROR(VLOOKUP(miDesplegable&\"*\",$A110:$A$244,1,FALSE),\"\")=\"\",\"\",IFERROR(VLOOKUP(miDesplegable&\"*\",$A110:$A$244,1,FALSE),\"\"))","v":"Islas Georgias y Sandwich"},null,"Islas Georgias y Sandwich",null,"Islas Georgias y Sandwich",null,"Islas Georgias y Sandwich"]
["Islas Malvinas",null,{"$f":"IF(IFERROR(VLOOKUP(miDesplegable&\"*\",$A111:$A$244,1,FALSE),\"\")=\"\",\"\",IFERROR(VLOOKUP(miDesplegable&\"*\",$A111:$A$244,1,FALSE),\"\"))","v":"Islas Malvinas"},null,"Islas Malvinas",null,"Islas Malvinas",null,"Islas Malvinas"]
["Islas Marianas del Norte",null,{"$f":"IF(IFERROR(VLOOKUP(miDesplegable&\"*\",$A112:$A$244,1,FALSE),\"\")=\"\",\"\",IFERROR(VLOOKUP(miDesplegable&\"*\",$A112:$A$244,1,FALSE),\"\"))","v":"Islas Marianas del Norte"},null,"Islas Marianas del Norte",null,"Islas Marianas del Norte",null,"Islas Marianas del Norte"]
["Islas Marshall",null,{"$f":"IF(IFERROR(VLOOKUP(miDesplegable&\"*\",$A113:$A$244,1,FALSE),\"\")=\"\",\"\",IFERROR(VLOOKUP(miDesplegable&\"*\",$A113:$A$244,1,FALSE),\"\"))","v":"Islas Marshall"},null,"Islas Marshall",null,"Islas Marshall",null,"Islas Marshall"]
["Islas Pitcairn",null,{"$f":"IF(IFERROR(VLOOKUP(miDesplegable&\"*\",$A114:$A$244,1,FALSE),\"\")=\"\",\"\",IFERROR(VLOOKUP(miDesplegable&\"*\",$A114:$A$244,1,FALSE),\"\"))","v":"Islas Pitcairn"},null,"Islas Pitcairn",null,"Islas Pitcairn",null,"Islas Pitcairn"]
["Islas Salomón",null,{"$f":"IF(IFERROR(VLOOKUP(miDesplegable&\"*\",$A115:$A$244,1,FALSE),\"\")=\"\",\"\",IFERROR(VLOOKUP(miDesplegable&\"*\",$A115:$A$244,1,FALSE),\"\"))","v":"Islas Salomón"},null,"Islas Salomón",null,"Islas Salomón",null,"Islas Salomón"]
["Islas Turcas y Caicos",null,{"$f":"IF(IFERROR(VLOOKUP(miDesplegable&\"*\",$A116:$A$244,1,FALSE),\"\")=\"\",\"\",IFERROR(VLOOKUP(miDesplegable&\"*\",$A116:$A$244,1,FALSE),\"\"))","v":"Islas Turcas y Caicos"},null,"Islas Turcas y Caicos",null,"Islas Turcas y Caicos",null,"Islas Turcas y Caicos"]
["Islas Vírgenes Británicas",null,{"$f":"IF(IFERROR(VLOOKUP(miDesplegable&\"*\",$A117:$A$244,1,FALSE),\"\")=\"\",\"\",IFERROR(VLOOKUP(miDesplegable&\"*\",$A117:$A$244,1,FALSE),\"\"))","v":"Islas Vírgenes Británicas"},null,"Islas Vírgenes Británicas",null,"Islas Vírgenes Británicas",null,"Islas Vírgenes Británicas"]
["Islas Vírgenes de Estados Unidos",null,{"$f":"IF(IFERROR(VLOOKUP(miDesplegable&\"*\",$A118:$A$244,1,FALSE),\"\")=\"\",\"\",IFERROR(VLOOKUP(miDesplegable&\"*\",$A118:$A$244,1,FALSE),\"\"))","v":"Islas Vírgenes de Estados Unidos"},null,"Islas Vírgenes de Estados Unidos",null,"Islas Vírgenes de Estados Unidos",null,"Islas Vírgenes de Estados Unidos"]
["Israel",null,{"$f":"IF(IFERROR(VLOOKUP(miDesplegable&\"*\",$A119:$A$244,1,FALSE),\"\")=\"\",\"\",IFERROR(VLOOKUP(miDesplegable&\"*\",$A119:$A$244,1,FALSE),\"\"))","v":"Israel"},null,"Israel",null,"Israel",null,"Israel"]
["Italia",null,{"$f":"IF(IFERROR(VLOOKUP(miDesplegable&\"*\",$A120:$A$244,1,FALSE),\"\")=\"\",\"\",IFERROR(VLOOKUP(miDesplegable&\"*\",$A120:$A$244,1,FALSE),\"\"))","v":"Italia"},null,"Italia",null,"Italia",null,"Italia"]
["Jamaica",null,{"$f":"IF(IFERROR(VLOOKUP(miDesplegable&\"*\",$A121:$A$244,1,FALSE),\"\")=\"\",\"\",IFERROR(VLOOKUP(miDesplegable&\"*\",$A121:$A$244,1,FALSE),\"\"))","v":"Jamaica"},null,"Jamaica",null,"Jamaica",null,"Jamaica"]
["Japón",null,{"$f":"IF(IFERROR(VLOOKUP(miDesplegable&\"*\",$A122:$A$244,1,FALSE),\"\")=\"\",\"\",IFERROR(VLOOKUP(miDesplegable&\"*\",$A122:$A$244,1,FALSE),\"\"))","v":"Japón"},null,"Japón",null,"Japón",null,"Japón"]
["Jersey",null,{"$f":"IF(IFERROR(VLOOKUP(miDesplegable&\"*\",$A123:$A$244,1,FALSE),\"\")=\"\",\"\",IFERROR(VLOOKUP(miDesplegable&\"*\",$A123:$A$244,1,FALSE),\"\"))","v":"Jersey"},null,"Jersey",null,"Jersey",null,"Jersey"]
["Jordania",null,{"$f":"IF(IFERROR(VLOOKUP(miDesplegable&\"*\",$A124:$A$244,1,FALSE),\"\")=\"\",\"\",IFERROR(VLOOKUP(miDesplegable&\"*\",$A124:$A$244,1,FALSE),\"\"))","v":"Jordania"},null,"Jordania",null,"Jordania",null,"Jordania"]
["Kazajistán",null,{"$f":"IF(IFERROR(VLOOKUP(miDesplegable&\"*\",$A125:$A$244,1,FALSE),\"\")=\"\",\"\",IFERROR(VLOOKUP(miDesplegable&\"*\",$A125:$A$244,1,FALSE),\"\"))","v":"Kazajistán"},null,"Kazajistán",null,"Kazajistán",null,"Kazajistán"]
["Kenia",null,{"$f":"IF(IFERROR(VLOOKUP(miDesplegable&\"*\",$A126:$A$244,1,FALSE),\"\")=\"\",\"\",IFERROR(VLOOKUP(miDesplegable&\"*\",$A126:$A$244,1,FALSE),\"\"))","v":"Kenia"},null,"Kenia",null,"Kenia",null,"Kenia"]
["Kirguistán",null,{"$f":"IF(IFERROR(VLOOKUP(miDesplegable&\"*\",$A127:$A$244,1,FALSE),\"\")=\"\",\"\",IFERROR(VLOOKUP(miDesplegable&\"*\",$A127:$A$244,1,FALSE),\"\"))","v":"Kirguistán"},null,"Kirguistán",null,"Kirguistán",null,"Kirguistán"]
["Kiribati",null,{"$f":"IF(IFERROR(VLOOKUP(miDesplegable&\"*\",$A128:$A$244,1,FALSE),\"\")=\"\",\"\",IFERROR(VLOOKUP(miDesplegable&\"*\",$A128:$A$244,1,FALSE),\"\"))","v":"Kiribati"},null,"Kiribati",null,"Kiribati",null,"Kiribati"]
["Kosovo",null,{"$f":"IF(IFERROR(VLOOKUP(miDesplegable&\"*\",$A129:$A$244,1,FALSE),\"\")=\"\",\"\",IFERROR(VLOOKUP(miDesplegable&\"*\",$A129:$A$244,1,FALSE),\"\"))","v":"Kosovo"},null,"Kosovo",null,"Kosovo",null,"Kosovo"]
["Kuwait",null,{"$f":"IF(IFERROR(VLOOKUP(miDesplegable&\"*\",$A130:$A$244,1,FALSE),\"\")=\"\",\"\",IFERROR(VLOOKUP(miDesplegable&\"*\",$A130:$A$244,1,FALSE),\"\"))","v":"Kuwait"},null,"Kuwait",null,"Kuwait",null,"Kuwait"]
["Laos",null,{"$f":"IF(IFERROR(VLOOKUP(miDesplegable&\"*\",$A131:$A$244,1,FALSE),\"\")=\"\",\"\",IFERROR(VLOOKUP(miDesplegable&\"*\",$A131:$A$244,1,FALSE),\"\"))","v":"Laos"},null,"Laos",null,"Laos",null,"Laos"]
["Lesoto",null,{"$f":"IF(IFERROR(VLOOKUP(miDesplegable&\"*\",$A132:$A$244,1,FALSE),\"\")=\"\",\"\",IFERROR(VLOOKUP(miDesplegable&\"*\",$A132:$A$244,1,FALSE),\"\"))","v":"Lesoto"},null,"Lesoto",null,"Lesoto",null,"Lesoto"]
["Letonia",null,{"$f":"IF(IFERROR(VLOOKUP(miDesplegable&\"*\",$A133:$A$244,1,FALSE),\"\")=\"\",\"\",IFERROR(VLOOKUP(miDesplegable&\"*\",$A133:$A$244,1,FALSE),\"\"))","v":"Letonia"},null,"Letonia",null,"Letonia",null,"Letonia"]
["Líbano",null,{"$f":"IF(IFERROR(VLOOKUP(miDesplegable&\"*\",$A134:$A$244,1,FALSE),\"\")=\"\",\"\",IFERROR(VLOOKUP(miDesplegable&\"*\",$A134:$A$244,1,FALSE),\"\"))","v":"Líbano"},null,"Líbano",null,"Líbano",null,"Líbano"]
["Liberia",null,{"$f":"IF(IFERROR(VLOOKUP(miDesplegable&\"*\",$A135:$A$244,1,FALSE),\"\")=\"\",\"\",IFERROR(VLOOKUP(miDesplegable&\"*\",$A135:$A$244,1,FALSE),\"\"))","v":"Liberia"},null,"Liberia",null,"Liberia",null,"Liberia"]
["Libia",null,{"$f":"IF(IFERROR(VLOOKUP(miDesplegable&\"*\",$A136:$A$244,1,FALSE),\"\")=\"\",\"\",IFERROR(VLOOKUP(miDesplegable&\"*\",$A136:$A$244,1,FALSE),\"\"))","v":"Libia"},null,"Libia",null,"Libia",null,"Libia"]
["Liechtenstein",null,{"$f":"IF(IFERROR(VLOOKUP(miDesplegable&\"*\",$A137:$A$244,1,FALSE),\"\")=\"\",\"\",IFERROR(VLOOKUP(miDesplegable&\"*\",$A137:$A$244,1,FALSE),\"\"))","v":"Liechtenstein"},null,"Liechtenstein",null,"Liechtenstein",null,"Liechtenstein"]
["Lituania",null,{"$f":"IF(IFERROR(VLOOKUP(miDesplegable&\"*\",$A138:$A$244,1,FALSE),\"\")=\"\",\"\",IFERROR(VLOOKUP(miDesplegable&\"*\",$A138:$A$244,1,FALSE),\"\"))","v":"Lituania"},null,"Lituania",null,"Lituania",null,"Lituania"]
["Luxemburgo",null,{"$f":"IF(IFERROR(VLOOKUP(miDesplegable&\"*\",$A139:$A$244,1,FALSE),\"\")=\"\",\"\",IFERROR(VLOOKUP(miDesplegable&\"*\",$A139:$A$244,1,FALSE),\"\"))","v":"Luxemburgo"},null,"Luxemburgo",null,"Luxemburgo",null,"Luxemburgo"]
["Macedonia del Norte",null,{"$f":"IF(IFERROR(VLOOKUP(miDesplegable&\"*\",$A140:$A$244,1,FALSE),\"\")=\"\",\"\",IFERROR(VLOOKUP(miDesplegable&\"*\",$A140:$A$244,1,FALSE),\"\"))","v":"Macedonia del Norte"},null,"Macedonia del Norte",null,"Macedonia del Norte",null,"Macedonia del Norte"]
["Madagascar",null,{"$f":"IF(IFERROR(VLOOKUP(miDesplegable&\"*\",$A141:$A$244,1,FALSE),\"\")=\"\",\"\",IFERROR(VLOOKUP(miDesplegable&\"*\",$A141:$A$244,1,FALSE),\"\"))","v":"Madagascar"},null,"Madagascar",null,"Madagascar",null,"Madagascar"]
["Malasia",null,{"$f":"IF(IFERROR(VLOOKUP(miDesplegable&\"*\",$A142:$A$244,1,FALSE),\"\")=\"\",\"\",IFERROR(VLOOKUP(miDesplegable&\"*\",$A142:$A$244,1,FALSE),\"\"))","v":"Malasia"},null,"Malasia",null,"Malasia",null,"Malasia"]
["Malaui",null,{"$f":"IF(IFERROR(VLOOKUP(miDesplegable&\"*\",$A143:$A$244,1,FALSE),\"\")=\"\",\"\",IFERROR(VLOOKUP(miDesplegable&\"*\",$A143:$A$244,1,FALSE),\"\"))","v":"Malaui"},null,"Malaui",null,"Malaui",null,"Malaui"]
["Maldivas",null,{"$f":"IF(IFERROR(VLOOKUP(miDesplegable&\"*\",$A144:$A$244,1,FALSE),\"\")=\"\",\"\",IFERROR(VLOOKUP(miDesplegable&\"*\",$A144:$A$244,1,FALSE),\"\"))","v":"Maldivas"},null,"Maldivas",null,"Maldivas",null,"Maldivas"]
["Malí",null,{"$f":"IF(IFERROR(VLOOKUP(miDesplegable&\"*\",$A145:$A$244,1,FALSE),\"\")=\"\",\"\",IFERROR(VLOOKUP(miDesplegable&\"*\",$A145:$A$244,1,FALSE),\"\"))","v":"Malí"},null,"Malí",null,"Malí",null,"Malí"]
["Malta",null,{"$f":"IF(IFERROR(VLOOKUP(miDesplegable&\"*\",$A146:$A$244,1,FALSE),\"\")=\"\",\"\",IFERROR(VLOOKUP(miDesplegable&\"*\",$A146:$A$244,1,FALSE),\"\"))","v":"Malta"},null,"Malta",null,"Malta",null,"Malta"]
["Marruecos",null,{"$f":"IF(IFERROR(VLOOKUP(miDesplegable&\"*\",$A147:$A$244,1,FALSE),\"\")=\"\",\"\",IFERROR(VLOOKUP(miDesplegable&\"*\",$A147:$A$244,1,FALSE),\"\"))","v":"Marruecos"},null,"Marruecos",null,"Marruecos",null,"Marruecos"]
["Martinica",null,{"$f":"IF(IFERROR(VLOOKUP(miDesplegable&\"*\",$A148:$A$244,1,FALSE),\"\")=\"\",\"\",IFERROR(VLOOKUP(miDesplegable&\"*\",$A148:$A$244,1,FALSE),\"\"))","v":"Martinica"},null,"Martinica",null,"Martinica",null,"Martinica"]
["Mauricio",null,{"$f":"IF(IFERROR(VLOOKUP(miDesplegable&\"*\",$A149:$A$244,1,FALSE),\"\")=\"\",\"\",IFERROR(VLOOKUP(miDesplegable&\"*\",$A149:$A$244,1,FALSE),\"\"))","v":"Mauricio"},null,"Mauricio",null,"Mauricio",null,"Mauricio"]
["Mauritania",null,{"$f":"IF(IFERROR(VLOOKUP(miDesplegable&\"*\",$A150:$A$244,1,FALSE),\"\")=\"\",\"\",IFERROR(VLOOKUP(miDesplegable&\"*\",$A150:$A$244,1,FALSE),\"\"))","v":"Mauritania"},null,"Mauritania",null,"Mauritania",null,"Mauritania"]
["Mayotte",null,{"$f":"IF(IFERROR(VLOOKUP(miDesplegable&\"*\",$A151:$A$244,1,FALSE),\"\")=\"\",\"\",IFERROR(VLOOKUP(miDesplegable&\"*\",$A151:$A$244,1,FALSE),\"\"))","v":"Mayotte"},null,"Mayotte",null,"Mayotte",null,"Mayotte"]
["México",null,{"$f":"IF(IFERROR(VLOOKUP(miDesplegable&\"*\",$A152:$A$244,1,FALSE),\"\")=\"\",\"\",IFERROR(VLOOKUP(miDesplegable&\"*\",$A152:$A$244,1,FALSE),\"\"))","v":"México"},null,"México",null,"México",null,"México"]
["Micronesia",null,{"$f":"IF(IFERROR(VLOOKUP(miDesplegable&\"*\",$A153:$A$244,1,FALSE),\"\")=\"\",\"\",IFERROR(VLOOKUP(miDesplegable&\"*\",$A153:$A$244,1,FALSE),\"\"))","v":"Micronesia"},null,"Micronesia",null,"Micronesia",null,"Micronesia"]
["Moldavia",null,{"$f":"IF(IFERROR(VLOOKUP(miDesplegable&\"*\",$A154:$A$244,1,FALSE),\"\")=\"\",\"\",IFERROR(VLOOKUP(miDesplegable&\"*\",$A154:$A$244,1,FALSE),\"\"))","v":"Moldavia"},null,"Moldavia",null,"Moldavia",null,"Moldavia"]
["Mónaco",null,{"$f":"IF(IFERROR(VLOOKUP(miDesplegable&\"*\",$A155:$A$244,1,FALSE),\"\")=\"\",\"\",IFERROR(VLOOKUP(miDesplegable&\"*\",$A155:$A$244,1,FALSE),\"\"))","v":"Mónaco"},null,"Mónaco",null,"Mónaco",null,"Mónaco"]
["Mongolia",null,{"$f":"IF(IFERROR(VLOOKUP(miDesplegable&\"*\",$A156:$A$244,1,FALSE),\"\")=\"\",\"\",IFERROR(VLOOKUP(miDesplegable&\"*\",$A156:$A$244,1,FALSE),\"\"))","v":"Mongolia"},null,"Mongolia",null,"Mongolia",null,"Mongolia"]
["Montenegro",null,{"$f":"IF(IFERROR(VLOOKUP(miDesplegable&\"*\",$A157:$A$244,1,FALSE),\"\")=\"\",\"\",IFERROR(VLOOKUP(miDesplegable&\"*\",$A157:$A$244,1,FALSE),\"\"))","v":"Montenegro"},null,"Montenegro",null,"Montenegro",null,"Montenegro"]
["Montserrat",null,{"$f":"IF(IFERROR(VLOOKUP(miDesplegable&\"*\",$A158:$A$244,1,FALSE),\"\")=\"\",\"\",IFERROR(VLOOKUP(miDesplegable&\"*\",$A158:$A$244,1,FALSE),\"\"))","v":"Montserrat"},null,"Montserrat",null,"Montserrat",null,"Montserrat"]
["Mozambique",null,{"$f":"IF(IFERROR(VLOOKUP(miDesplegable&\"*\",$A159:$A$244,1,FALSE),\"\")=\"\",\"\",IFERROR(VLOOKUP(miDesplegable&\"*\",$A159:$A$244,1,FALSE),\"\"))","v":"Mozambique"},null,"Mozambique",null,"Mozambique",null,"Mozambique"]
["Namibia",null,{"$f":"IF(IFERROR(VLOOKUP(miDesplegable&\"*\",$A160:$A$244,1,FALSE),\"\")=\"\",\"\",IFERROR(VLOOKUP(miDesplegable&\"*\",$A160:$A$244,1,FALSE),\"\"))","v":"Namibia"},null,"Namibia",null,"Namibia",null,"Namibia"]
["Nauru",null,{"$f":"IF(IFERROR(VLOOKUP(miDesplegable&\"*\",$A161:$A$244,1,FALSE),\"\")=\"\",\"\",IFERROR(VLOOKUP(miDesplegable&\"*\",$A161:$A$244,1,FALSE),\"\"))","v":"Nauru"},null,"Nauru",null,"Nauru",null,"Nauru"]
["Nepal",null,{"$f":"IF(IFERROR(VLOOKUP(miDesplegable&\"*\",$A162:$A$244,1,FALSE),\"\")=\"\",\"\",IFERROR(VLOOKUP(miDesplegable&\"*\",$A162:$A$244,1,FALSE),\"\"))","v":"Nepal"},null,"Nepal",null,"Nepal",null,"Nepal"]
["Nicaragua",null,{"$f":"IF(IFERROR(VLOOKUP(miDesplegable&\"*\",$A163:$A$244,1,FALSE),\"\")=\"\",\"\",IFERROR(VLOOKUP(miDesplegable&\"*\",$A163:$A$244,1,FALSE),\"\"))","v":"Nicaragua"},null,"Nicaragua",null,"Nicaragua",null,"Nicaragua"]
["Níger",null,{"$f":"IF(IFERROR(VLOOKUP(miDesplegable&\"*\",$A164:$A$244,1,FALSE),\"\")=\"\",\"\",IFERROR(VLOOKUP(miDesplegable&\"*\",$A164:$A$244,1,FALSE),\"\"))","v":"Níger"},null,"Níger",null,"Níger",null,"Níger"]
["Nigeria",null,{"$f":"IF(IFERROR(VLOOKUP(miDesplegable&\"*\",$A165:$A$244,1,FALSE),\"\")=\"\",\"\",IFERROR(VLOOKUP(miDesplegable&\"*\",$A165:$A$244,1,FALSE),\"\"))","v":"Nigeria"},null,"Nigeria",null,"Nigeria",null,"Nigeria"]
["Noruega",null,{"$f":"IF(IFERROR(VLOOKUP(miDesplegable&\"*\",$A166:$A$244,1,FALSE),\"\")=\"\",\"\",IFERROR(VLOOKUP(miDesplegable&\"*\",$A166:$A$244,1,FALSE),\"\"))","v":"Noruega"},null,"Noruega",null,"Noruega",null,"Noruega"]
["Nueva Caledonia",null,{"$f":"IF(IFERROR(VLOOKUP(miDesplegable&\"*\",$A167:$A$244,1,FALSE),\"\")=\"\",\"\",IFERROR(VLOOKUP(miDesplegable&\"*\",$A167:$A$244,1,FALSE),\"\"))","v":"Nueva Caledonia"},null,"Nueva Caledonia",null,"Nueva Caledonia",null,"Nueva Caledonia"]
["Nueva Zelanda",null,{"$f":"IF(IFERROR(VLOOKUP(miDesplegable&\"*\",$A168:$A$244,1,FALSE),\"\")=\"\",\"\",IFERROR(VLOOKUP(miDesplegable&\"*\",$A168:$A$244,1,FALSE),\"\"))","v":"Nueva Zelanda"},null,"Nueva Zelanda",null,"Nueva Zelanda",null,"Nueva Zelanda"]
["Omán",null,{"$f":"IF(IFERROR(VLOOKUP(miDesplegable&\"*\",$A169:$A$244,1,FALSE),\"\")=\"\",\"\",IFERROR(VLOOKUP(miDesplegable&\"*\",$A169:$A$244,1,FALSE),\"\"))","v":"Omán"},null,"Omán",null,"Omán",null,"Omán"]
["Países Bajos",null,{"$f":"IF(IFERROR(VLOOKUP(miDesplegable&\"*\",$A170:$A$244,1,FALSE),\"\")=\"\",\"\",IFERROR(VLOOKUP(miDesplegable&\"*\",$A170:$A$244,1,FALSE),\"\"))","v":"Países Bajos"},null,"Países Bajos",null,"Países Bajos",null,"Países Bajos"]
["Pakistán",null,{"$f":"IF(IFERROR(VLOOKUP(miDesplegable&\"*\",$A171:$A$244,1,FALSE),\"\")=\"\",\"\",IFERROR(VLOOKUP(miDesplegable&\"*\",$A171:$A$244,1,FALSE),\"\"))","v":"Pakistán"},null,"Pakistán",null,"Pakistán",null,"Pakistán"]
["Palaos",null,{"$f":"IF(IFERROR(VLOOKUP(miDesplegable&\"*\",$A172:$A$244,1,FALSE),\"\")=\"\",\"\",IFERROR(VLOOKUP(miDesplegable&\"*\",$A172:$A$244,1,FALSE),\"\"))","v":"Palaos"},null,"Palaos",null,"Palaos",null,"Palaos"]
["Palestina",null,{"$f":"IF(IFERROR(VLOOKUP(miDesplegable&\"*\",$A173:$A$244,1,FALSE),\"\")=\"\",\"\",IFERROR(VLOOKUP(miDesplegable&\"*\",$A173:$A$244,1,FALSE),\"\"))","v":"Palestina"},null,"Palestina",null,"Palestina",null,"Palestina"]
["Panamá",null,{"$f":"IF(IFERROR(VLOOKUP(miDesplegable&\"*\",$A174:$A$244,1,FALSE),\"\")=\"\",\"\",IFERROR(VLOOKUP(miDesplegable&\"*\",$A174:$A$244,1,FALSE),\"\"))","v":"Panamá"},null,"Panamá",null,"Panamá",null,"Panamá"]
["Papúa Nueva Guinea",null,{"$f":"IF(IFERROR(VLOOKUP(miDesplegable&\"*\",$A175:$A$244,1,FALSE),\"\")=\"\",\"\",IFERROR(VLOOKUP(miDesplegable&\"*\",$A175:$A$244,1,FALSE),\"\"))","v":"Papúa Nueva Guinea"},null,"Papúa Nueva Guinea",null,"Papúa Nueva Guinea",null,"Papúa Nueva Guinea"]
["Paraguay",null,{"$f":"IF(IFERROR(VLOOKUP(miDesplegable&\"*\",$A176:$A$244,1,FALSE),\"\")=\"\",\"\",IFERROR(VLOOKUP(miDesplegable&\"*\",$A176:$A$244,1,FALSE),\"\"))","v":"Paraguay"},null,"Paraguay",null,"Paraguay",null,"Paraguay"]
["Perú",null,{"$f":"IF(IFERROR(VLOOKUP(miDesplegable&\"*\",$A177:$A$244,1,FALSE),\"\")=\"\",\"\",IFERROR(VLOOKUP(miDesplegable&\"*\",$A177:$A$244,1,FALSE),\"\"))","v":"Perú"},null,"Perú",null,"Perú",null,"Perú"]
["Polonia",null,{"$f":"IF(IFERROR(VLOOKUP(miDesplegable&\"*\",$A178:$A$244,1,FALSE),\"\")=\"\",\"\",IFERROR(VLOOKUP(miDesplegable&\"*\",$A178:$A$244,1,FALSE),\"\"))","v":"Polonia"},null,"Polonia",null,"Polonia",null,"Polonia"]
["Portugal",null,{"$f":"IF(IFERROR(VLOOKUP(miDesplegable&\"*\",$A179:$A$244,1,FALSE),\"\")=\"\",\"\",IFERROR(VLOOKUP(miDesplegable&\"*\",$A179:$A$244,1,FALSE),\"\"))","v":"Portugal"},null,"Portugal",null,"Portugal",null,"Portugal"]
["Puerto Rico",null,{"$f":"IF(IFERROR(VLOOKUP(miDesplegable&\"*\",$A180:$A$244,1,FALSE),\"\")=\"\",\"\",IFERROR(VLOOKUP(miDesplegable&\"*\",$A180:$A$244,1,FALSE),\"\"))","v":"Puerto Rico"},null,"Puerto Rico",null,"Puerto Rico",null,"Puerto Rico"]
["Reino Unido",null,{"$f":"IF(IFERROR(VLOOKUP(miDesplegable&\"*\",$A181:$A$244,1,FALSE),\"\")=\"\",\"\",IFERROR(VLOOKUP(miDesplegable&\"*\",$A181:$A$244,1,FALSE),\"\"))","v":"Reino Unido"},null,"Reino Unido",null,"Reino Unido",null,"Reino Unido"]
["República Centroafricana",null,{"$f":"IF(IFERROR(VLOOKUP(miDesplegable&\"*\",$A182:$A$244,1,FALSE),\"\")=\"\",\"\",IFERROR(VLOOKUP(miDesplegable&\"*\",$A182:$A$244,1,FALSE),\"\"))","v":"República Centroafricana"},null,"República Centroafricana",null,"República Centroafricana",null,"República Centroafricana"]
["República Checa",null,{"$f":"IF(IFERROR(VLOOKUP(miDesplegable&\"*\",$A183:$A$244,1,FALSE),\"\")=\"\",\"\",IFERROR(VLOOKUP(miDesplegable&\"*\",$A183:$A$244,1,FALSE),\"\"))","v":"República Checa"},null,"República Checa",null,"República Checa",null,"República Checa"]
["República del Congo",null,{"$f":"IF(IFERROR(VLOOKUP(miDesplegable&\"*\",$A184:$A$244,1,FALSE),\"\")=\"\",\"\",IFERROR(VLOOKUP(miDesplegable&\"*\",$A184:$A$244,1,FALSE),\"\"))","v":"República del Congo"},null,"República del Congo",null,"República del Congo",null,"República del Congo"]
["República Democrática del Congo",null,{"$f":"IF(IFERROR(VLOOKUP(miDesplegable&\"*\",$A185:$A$244,1,FALSE),\"\")=\"\",\"\",IFERROR(VLOOKUP(miDesplegable&\"*\",$A185:$A$244,1,FALSE),\"\"))","v":"República Democrática del Congo"},null,"República Democrática del Congo",null,"República Democrática del Congo",null,"República Democrática del Congo"]
["República Dominicana",null,{"$f":"IF(IFERROR(VLOOKUP(miDesplegable&\"*\",$A186:$A$244,1,FALSE),\"\")=\"\",\"\",IFERROR(VLOOKUP(miDesplegable&\"*\",$A186:$A$244,1,FALSE),\"\"))","v":"República Dominicana"},null,"República Dominicana",null,"República Dominicana",null,"República Dominicana"]
["Reunión",null,{"$f":"IF(IFERROR(VLOOKUP(miDesplegable&\"*\",$A187:$A$244,1,FALSE),\"\")=\"\",\"\",IFERROR(VLOOKUP(miDesplegable&\"*\",$A187:$A$244,1,FALSE),\"\"))","v":"Reunión"},null,"Reunión",null,"Reunión",null,"Reunión"]
["Ruanda",null,{"$f":"IF(IFERROR(VLOOKUP(miDesplegable&\"*\",$A188:$A$244,1,FALSE),\"\")=\"\",\"\",IFERROR(VLOOKUP(miDesplegable&\"*\",$A188:$A$244,1,FALSE),\"\"))","v":"Ruanda"},null,"Ruanda",null,"Ruanda",null,"Ruanda"]
["Rumanía",null,{"$f":"IF(IFERROR(VLOOKUP(miDesplegable&\"*\",$A189:$A$244,1,FALSE),\"\")=\"\",\"\",IFERROR(VLOOKUP(miDesplegable&\"*\",$A189:$A$244,1,FALSE),\"\"))","v":"Rumanía"},null,"Rumanía",null,"Rumanía",null,"Rumanía"]
["Rusia",null,{"$f":"IF(IFERROR(VLOOKUP(miDesplegable&\"*\",$A190:$A$244,1,FALSE),\"\")=\"\",\"\",IFERROR(VLOOKUP(miDesplegable&\"*\",$A190:$A$244,1,FALSE),\"\"))","v":"Rusia"},null,"Rusia",null,"Rusia",null,"Rusia"]
["Sáhara Occidental",null,{"$f":"IF(IFERROR(VLOOKUP(miDesplegable&\"*\",$A191:$A$244,1,FALSE),\"\")=\"\",\"\",IFERROR(VLOOKUP(miDesplegable&\"*\",$A191:$A$244,1,FALSE),\"\"))","v":"Sáhara Occidental"},null,"Sáhara Occidental",null,"Sáhara Occidental",null,"Sáhara Occidental"]
["Samoa",null,{"$f":"IF(IFERROR(VLOOKUP(miDesplegable&\"*\",$A192:$A$244,1,FALSE),\"\")=\"\",\"\",IFERROR(VLOOKUP(miDesplegable&\"*\",$A192:$A$244,1,FALSE),\"\"))","v":"Samoa"},null,"Samoa",null,"Samoa",null,"Samoa"]
["Samoa Americana",null,{"$f":"IF(IFERROR(VLOOKUP(miDesplegable&\"*\",$A193:$A$244,1,FALSE),\"\")=\"\",\"\",IFERROR(VLOOKUP(miDesplegable&\"*\",$A193:$A$244,1,FALSE),\"\"))","v":"Samoa Americana"},null,"Samoa Americana",null,"Samoa Americana",null,"Samoa Americana"]
["San Bartolomé",null,{"$f":"IF(IFERROR(VLOOKUP(miDesplegable&\"*\",$A194:$A$244,1,FALSE),\"\")=\"\",\"\",IFERROR(VLOOKUP(miDesplegable&\"*\",$A194:$A$244,1,FALSE),\"\"))","v":"San Bartolomé"},null,"San Bartolomé",null,"San Bartolomé",null,"San Bartolomé"]
["San Cristóbal y Nieves",null,{"$f":"IF(IFERROR(VLOOKUP(miDesplegable&\"*\",$A195:$A$244,1,FALSE),\"\")=\"\",\"\",IFERROR(VLOOKUP(miDesplegable&\"*\",$A195:$A$244,1,FALSE),\"\"))","v":"San Cristóbal y Nieves"},null,"San Cristóbal y Nieves",null,"San Cristóbal y Nieves",null,"San Cristóbal y Nieves"]
["San Marino",null,{"$f":"IF(IFERROR(VLOOKUP(miDesplegable&\"*\",$A196:$A$244,1,FALSE),\"\")=\"\",\"\",IFERROR(VLOOKUP(miDesplegable&\"*\",$A196:$A$244,1,FALSE),\"\"))","v":"San Marino"},null,"San Marino",null,"San Marino",null,"San Marino"]
["San Martín",null,{"$f":"IF(IFERROR(VLOOKUP(miDesplegable&\"*\",$A197:$A$244,1,FALSE),\"\")=\"\",\"\",IFERROR(VLOOKUP(miDesplegable&\"*\",$A197:$A$244,1,FALSE),\"\"))","v":"San Martín"},null,"San Martín",null,"San Martín",null,"San Martín"]
["San Martín (Países Bajos)",null,{"$f":"IF(IFERROR(VLOOKUP(miDesplegable&\"*\",$A198:$A$244,1,FALSE),\"\")=\"\",\"\",IFERROR(VLOOKUP(miDesplegable&\"*\",$A198:$A$244,1,FALSE),\"\"))","v":"San Martín (Países Bajos)"},null,"San Martín (Países Bajos)",null,"San Martín (Países Bajos)",null,"San Martín (Países Bajos)"]
["San Pedro y Miquelón",null,{"$f":"IF(IFERROR(VLOOKUP(miDesplegable&\"*\",$A199:$A$244,1,FALSE),\"\")=\"\",\"\",IFERROR(VLOOKUP(miDesplegable&\"*\",$A199:$A$244,1,FALSE),\"\"))","v":"San Pedro y Miquelón"},null,"San Pedro y Miquelón",null,"San Pedro y Miquelón",null,"San Pedro y Miquelón"]
["San Vicente y las Granadinas",null,{"$f":"IF(IFERROR(VLOOKUP(miDesplegable&\"*\",$A200:$A$244,1,FALSE),\"\")=\"\",\"\",IFERROR(VLOOKUP(miDesplegable&\"*\",$A200:$A$244,1,FALSE),\"\"))","v":"San Vicente y las Granadinas"},null,"San Vicente y las Granadinas",null,"San Vicente y las Granadinas",null,"San Vicente y las Granadinas"]
["Santa Elena",null,{"$f":"IF(IFERROR(VLOOKUP(miDesplegable&\"*\",$A201:$A$244,1,FALSE),\"\")=\"\",\"\",IFERROR(VLOOKUP(miDesplegable&\"*\",$A201:$A$244,1,FALSE),\"\"))","v":"Santa Elena"},null,"Santa Elena",null,"Santa Elena",null,"Santa Elena"]
["Santa Lucía",null,{"$f":"IF(IFERROR(VLOOKUP(miDesplegable&\"*\",$A202:$A$244,1,FALSE),\"\")=\"\",\"\",IFERROR(VLOOKUP(miDesplegable&\"*\",$A202:$A$244,1,FALSE),\"\"))","v":"Santa Lucía"},null,"Santa Lucía",null,"Santa Lucía",null,"Santa Lucía"]
["Santo Tomé y Príncipe",null,{"$f":"IF(IFERROR(VLOOKUP(miDesplegable&\"*\",$A203:$A$244,1,FALSE),\"\")=\"\",\"\",IFERROR(VLOOKUP(miDesplegable&\"*\",$A203:$A$244,1,FALSE),\"\"))","v":"Santo Tomé y Príncipe"},null,"Santo Tomé y Príncipe",null,"Santo Tomé y Príncipe",null,"Santo Tomé y Príncipe"]
["Senegal",null,{"$f":"IF(IFERROR(VLOOKUP(miDesplegable&\"*\",$A204:$A$244,1,FALSE),\"\")=\"\",\"\",IFERROR(VLOOKUP(miDesplegable&\"*\",$A204:$A$244,1,FALSE),\"\"))","v":"Senegal"},null,"Senegal",null,"Senegal",null,"Senegal"]
["Serbia",null,{"$f":"IF(IFERROR(VLOOKUP(miDesplegable&\"*\",$A205:$A$244,1,FALSE),\"\")=\"\",\"\",IFERROR(VLOOKUP(miDesplegable&\"*\",$A205:$A$244,1,FALSE),\"\"))","v":"Serbia"},null,"Serbia",null,"Serbia",null,"Serbia"]
["Seychelles",null,{"$f":"IF(IFERROR(VLOOKUP(miDesplegable&\"*\",$A206:$A$244,1,FALSE),\"\")=\"\",\"\",IFERROR(VLOOKUP(miDesplegable&\"*\",$A206:$A$244,1,FALSE),\"\"))","v":"Seychelles"},null,"Seychelles",null,"Seychelles",null,"Seychelles"]
["Sierra Leona",null,{"$f":"IF(IFERROR(VLOOKUP(miDesplegable&\"*\",$A207:$A$244,1,FALSE),\"\")=\"\",\"\",IFERROR(VLOOKUP(miDesplegable&\"*\",$A207:$A$244,1,FALSE),\"\"))","v":"Sierra Leona"},null,"Sierra Leona",null,"Sierra Leona",null,"Sierra Leona"]
["Singapur",null,{"$f":"IF(IFERROR(VLOOKUP(miDesplegable&\"*\",$A208:$A$244,1,FALSE),\"\")=\"\",\"\",IFERROR(VLOOKUP(miDesplegable&\"*\",$A208:$A$244,1,FALSE),\"\"))","v":"Singapur"},null,"Singapur",null,"Singapur",null,"Singapur"]
["Siria",null,{"$f":"IF(IFERROR(VLOOKUP(miDesplegable&\"*\",$A209:$A$244,1,FALSE),\"\")=\"\",\"\",IFERROR(VLOOKUP(miDesplegable&\"*\",$A209:$A$244,1,FALSE),\"\"))","v":"Siria"},null,"Siria",null,"Siria",null,"Siria"]
["Somalia",null,{"$f":"IF(IFERROR(VLOOKUP(miDesplegable&\"*\",$A210:$A$244,1,FALSE),\"\")=\"\",\"\",IFERROR(VLOOKUP(miDesplegable&\"*\",$A210:$A$244,1,FALSE),\"\"))","v":"Somalia"},null,"Somalia",null,"Somalia",null,"Somalia"]
["Sri Lanka",null,{"$f":"IF(IFERROR(VLOOKUP(miDesplegable&\"*\",$A211:$A$244,1,FALSE),\"\")=\"\",\"\",IFERROR(VLOOKUP(miDesplegable&\"*\",$A211:$A$244,1,FALSE),\"\"))","v":"Sri Lanka"},null,"Sri Lanka",null,"Sri Lanka",null,"Sri Lanka"]
["Suazilandia",null,{"$f":"IF(IFERROR(VLOOKUP(miDesplegable&\"*\",$A212:$A$244,1,FALSE),\"\")=\"\",\"\",IFERROR(VLOOKUP(miDesplegable&\"*\",$A212:$A$244,1,FALSE),\"\"))","v":"Suazilandia"},null,"Suazilandia",null,"Suazilandia",null,"Suazilandia"]
["Sudáfrica",null,{"$f":"IF(IFERROR(VLOOKUP(miDesplegable&\"*\",$A213:$A$244,1,FALSE),\"\")=\"\",\"\",IFERROR(VLOOKUP(miDesplegable&\"*\",$A213:$A$244,1,FALSE),\"\"))","v":"Sudáfrica"},null,"Sudáfrica",null,"Sudáfrica",null,"Sudáfrica"]
["Sudán",null,{"$f":"IF(IFERROR(VLOOKUP(miDesplegable&\"*\",$A214:$A$244,1,FALSE),\"\")=\"\",\"\",IFERROR(VLOOKUP(miDesplegable&\"*\",$A214:$A$244,1,FALSE),\"\"))","v":"Sudán"},null,"Sudán",null,"Sudán",null,"Sudán"]
["Sudán del Sur",null,{"$f":"IF(IFERROR(VLOOKUP(miDesplegable&\"*\",$A215:$A$244,1,FALSE),\"\")=\"\",\"\",IFERROR(VLOOKUP(miDesplegable&\"*\",$A215:$A$244,1,FALSE),\"\"))","v":"Sudán del Sur"},null,"Sudán del Sur",null,"Sudán del Sur",null,"Sudán del Sur"]
["Suecia",null,{"$f":"IF(IFERROR(VLOOKUP(miDesplegable&\"*\",$A216:$A$244,1,FALSE),\"\")=\"\",\"\",IFERROR(VLOOKUP(miDesplegable&\"*\",$A216:$A$244,1,FALSE),\"\"))","v":"Suecia"},null,"Suecia",null,"Suecia",null,"Suecia"]
["Suiza",null,{"$f":"IF(IFERROR(VLOOKUP(miDesplegable&\"*\",$A217:$A$244,1,FALSE),\"\")=\"\",\"\",IFERROR(VLOOKUP(miDesplegable&\"*\",$A217:$A$244,1,FALSE),\"\"))","v":"Suiza"},null,"Suiza",null,"Suiza",null,"Suiza"]
["Surinam",null,{"$f":"IF(IFERROR(VLOOKUP(miDesplegable&\"*\",$A218:$A$244,1,FALSE),\"\")=\"\",\"\",IFERROR(VLOOKUP(miDesplegable&\"*\",$A218:$A$244,1,FALSE),\"\"))","v":"Surinam"},null,"Surinam",null,"Surinam",null,"Surinam"]
["Tailandia",null,{"$f":"IF(IFERROR(VLOOKUP(miDesplegable&\"*\",$A219:$A$244,1,FALSE),\"\")=\"\",\"\",IFERROR(VLOOKUP(miDesplegable&\"*\",$A219:$A$244,1,FALSE),\"\"))","v":"Tailandia"},null,"Tailandia",null,"Tailandia",null,"Tailandia"]
["Taiwán",null,{"$f":"IF(IFERROR(VLOOKUP(miDesplegable&\"*\",$A220:$A$244,1,FALSE),\"\")=\"\",\"\",IFERROR(VLOOKUP(miDesplegable&\"*\",$A220:$A$244,1,FALSE),\"\"))","v":"Taiwán"},null,"Taiwán",null,"Taiwán",null,"Taiwán"]
["Tanzania",null,{"$f":"IF(IFERROR(VLOOKUP(miDesplegable&\"*\",$A221:$A$244,1,FALSE),\"\")=\"\",\"\",IFERROR(VLOOKUP(miDesplegable&\"*\",$A221:$A$244,1,FALSE),\"\"))","v":"Tanzania"},null,"Tanzania",null,"Tanzania",null,"Tanzania"]
["Tayikistán",null,{"$f":"IF(IFERROR(VLOOKUP(miDesplegable&\"*\",$A222:$A$244,1,FALSE),\"\")=\"\",\"\",IFERROR(VLOOKUP(miDesplegable&\"*\",$A222:$A$244,1,FALSE),\"\"))","v":"Tayikistán"},null,"Tayikistán",null,"Tayikistán",null,"Tayikistán"]
["Territorio Británico del Índico",null,{"$f":"IF(IFERROR(VLOOKUP(miDesplegable&\"*\",$A223:$A$244,1,FALSE),\"\")=\"\",\"\",IFERROR(VLOOKUP(miDesplegable&\"*\",$A223:$A$244,1,FALSE),\"\"))","v":"Territorio Británico del Índico"},null,"Territorio Británico del Índico",null,"Territorio Británico del Índico",null,"Territorio Británico del Índico"]
["Tierras Australes Francesas",null,{"$f":"IF(IFERROR(VLOOKUP(miDesplegable&\"*\",$A224:$A$244,1,FALSE),\"\")=\"\",\"\",IFERROR(VLOOKUP(miDesplegable&\"*\",$A224:$A$244,1,FALSE),\"\"))","v":"Tierras Australes Francesas"},null,"Tierras Australes Francesas",null,"Tierras Australes Francesas",null,"Tierras Australes Francesas"]
["Timor Oriental",null,{"$f":"IF(IFERROR(VLOOKUP(miDesplegable&\"*\",$A225:$A$244,1,FALSE),\"\")=\"\",\"\",IFERROR(VLOOKUP(miDesplegable&\"*\",$A225:$A$244,1,FALSE),\"\"))","v":"Timor Oriental"},null,"Timor Oriental",null,"Timor Oriental",null,"Timor Oriental"]
["Togo",null,{"$f":"IF(IFERROR(VLOOKUP(miDesplegable&\"*\",$A226:$A$244,1,FALSE),\"\")=\"\",\"\",IFERROR(VLOOKUP(miDesplegable&\"*\",$A226:$A$244,1,FALSE),\"\"))","v":"Togo"},null,"Togo",null,"Togo",null,"Togo"]
["Tokelau",null,{"$f":"IF(IFERROR(VLOOKUP(miDesplegable&\"*\",$A227:$A$244,1,FALSE),\"\")=\"\",\"\",IFERROR(VLOOKUP(miDesplegable&\"*\",$A227:$A$244,1,FALSE),\"\"))","v":"Tokelau"},null,"Tokelau",null,"Tokelau",null,"Tokelau"]
["Tonga",null,{"$f":"IF(IFERROR(VLOOKUP(miDesplegable&\"*\",$A228:$A$244,1,FALSE),\"\")=\"\",\"\",IFERROR(VLOOKUP(miDesplegable&\"*\",$A228:$A$244,1,FALSE),\"\"))","v":"Tonga"},null,"Tonga",null,"Tonga",null,"Tonga"]
["Trinidad y Tobago",null,{"$f":"IF(IFERROR(VLOOKUP(miDesplegable&\"*\",$A229:$A$244,1,FALSE),\"\")=\"\",\"\",IFERROR(VLOOKUP(miDesplegable&\"*\",$A229:$A$244,1,FALSE),\"\"))","v":"Trinidad y Tobago"},null,"Trinidad y Tobago",null,"Trinidad y Tobago",null,"Trinidad y Tobago"]
["Túnez",null,{"$f":"IF(IFERROR(VLOOKUP(miDesplegable&\"*\",$A230:$A$244,1,FALSE),\"\")=\"\",\"\",IFERROR(VLOOKUP(miDesplegable&\"*\",$A230:$A$244,1,FALSE),\"\"))","v":"Túnez"},null,"Túnez",null,"Túnez",null,"Túnez"]
["Turkmenistán",null,{"$f":"IF(IFERROR(VLOOKUP(miDesplegable&\"*\",$A231:$A$244,1,FALSE),\"\")=\"\",\"\",IFERROR(VLOOKUP(miDesplegable&\"*\",$A231:$A$244,1,FALSE),\"\"))","v":"Turkmenistán"},null,"Turkmenistán",null,"Turkmenistán",null,"Turkmenistán"]
["Turquía",null,{"$f":"IF(IFERROR(VLOOKUP(miDesplegable&\"*\",$A232:$A$244,1,FALSE),\"\")=\"\",\"\",IFERROR(VLOOKUP(miDesplegable&\"*\",$A232:$A$244,1,FALSE),\"\"))","v":"Turquía"},null,"Turquía",null,"Turquía",null,"Turquía"]
["Tuvalu",null,{"$f":"IF(IFERROR(VLOOKUP(miDesplegable&\"*\",$A233:$A$244,1,FALSE),\"\")=\"\",\"\",IFERROR(VLOOKUP(miDesplegable&\"*\",$A233:$A$244,1,FALSE),\"\"))","v":"Tuvalu"},null,"Tuvalu",null,"Tuvalu",null,"Tuvalu"]
["Ucrania",null,{"$f":"IF(IFERROR(VLOOKUP(miDesplegable&\"*\",$A234:$A$244,1,FALSE),\"\")=\"\",\"\",IFERROR(VLOOKUP(miDesplegable&\"*\",$A234:$A$244,1,FALSE),\"\"))","v":"Ucrania"},null,"Ucrania",null,"Ucrania",null,"Ucrania"]
["Uganda",null,{"$f":"IF(IFERROR(VLOOKUP(miDesplegable&\"*\",$A235:$A$244,1,FALSE),\"\")=\"\",\"\",IFERROR(VLOOKUP(miDesplegable&\"*\",$A235:$A$244,1,FALSE),\"\"))","v":"Uganda"},null,"Uganda",null,"Uganda",null,"Uganda"]
["Uruguay",null,{"$f":"IF(IFERROR(VLOOKUP(miDesplegable&\"*\",$A236:$A$244,1,FALSE),\"\")=\"\",\"\",IFERROR(VLOOKUP(miDesplegable&\"*\",$A236:$A$244,1,FALSE),\"\"))","v":"Uruguay"},null,"Uruguay",null,"Uruguay",null,"Uruguay"]
["Uzbekistán",null,{"$f":"IF(IFERROR(VLOOKUP(miDesplegable&\"*\",$A237:$A$244,1,FALSE),\"\")=\"\",\"\",IFERROR(VLOOKUP(miDesplegable&\"*\",$A237:$A$244,1,FALSE),\"\"))","v":"Uzbekistán"},null,"Uzbekistán",null,"Uzbekistán",null,"Uzbekistán"]
["Vanuatu",null,{"$f":"IF(IFERROR(VLOOKUP(miDesplegable&\"*\",$A238:$A$244,1,FALSE),\"\")=\"\",\"\",IFERROR(VLOOKUP(miDesplegable&\"*\",$A238:$A$244,1,FALSE),\"\"))","v":"Vanuatu"},null,"Vanuatu",null,"Vanuatu",null,"Vanuatu"]
["Venezuela",null,{"$f":"IF(IFERROR(VLOOKUP(miDesplegable&\"*\",$A239:$A$244,1,FALSE),\"\")=\"\",\"\",IFERROR(VLOOKUP(miDesplegable&\"*\",$A239:$A$244,1,FALSE),\"\"))","v":"Venezuela"},null,"Venezuela",null,"Venezuela",null,"Venezuela"]
["Vietnam",null,{"$f":"IF(IFERROR(VLOOKUP(miDesplegable&\"*\",$A240:$A$244,1,FALSE),\"\")=\"\",\"\",IFERROR(VLOOKUP(miDesplegable&\"*\",$A240:$A$244,1,FALSE),\"\"))","v":"Vietnam"},null,"Vietnam",null,"Vietnam",null,"Vietnam"]
["Yemen",null,{"$f":"IF(IFERROR(VLOOKUP(miDesplegable&\"*\",$A241:$A$244,1,FALSE),\"\")=\"\",\"\",IFERROR(VLOOKUP(miDesplegable&\"*\",$A241:$A$244,1,FALSE),\"\"))","v":"Yemen"},null,"Yemen",null,"Yemen",null,"Yemen"]
["Yibuti",null,{"$f":"IF(IFERROR(VLOOKUP(miDesplegable&\"*\",$A242:$A$244,1,FALSE),\"\")=\"\",\"\",IFERROR(VLOOKUP(miDesplegable&\"*\",$A242:$A$244,1,FALSE),\"\"))","v":"Yibuti"},null,"Yibuti",null,"Yibuti",null,"Yibuti"]
["Zambia",null,{"$f":"IF(IFERROR(VLOOKUP(miDesplegable&\"*\",$A243:$A$244,1,FALSE),\"\")=\"\",\"\",IFERROR(VLOOKUP(miDesplegable&\"*\",$A243:$A$244,1,FALSE),\"\"))","v":"Zambia"},null,"Zambia",null,"Zambia",null,"Zambia"]
["Zimbabue",null,{"$f":"IF(IFERROR(VLOOKUP(miDesplegable&\"*\",$A244:$A$244,1,FALSE),\"\")=\"\",\"\",IFERROR(VLOOKUP(miDesplegable&\"*\",$A244:$A$244,1,FALSE),\"\"))","v":"Zimbabue"},null,"Zimbabue",null,"Zimbabue",null,"Zimbabue"]